bitfinex-derivatives/quotes_BTCF0:USTF0_20250416
["timestamp","ask_amount","ask_price","bid_price","bid_amount"]
[1744794964000,0.00408,83937.0,83936.0,0.2007266]
[1744794964196,0.004,83937.0,83936.0,0.2007266]
[1744794964400,0.00408,83937.0,83936.0,0.2007266]
[1744794968112,0.004,83937.0,83936.0,0.2007266]
[1744794968314,0.00408,83937.0,83936.0,0.2007266]
[1744794971517,0.00017868,83948.0,83947.0,0.1191323]
[1744794971711,0.00017868,83948.0,83947.0,0.6499323]
[1744794971916,0.00017868,83948.0,83947.0,0.7446323]
[1744794972307,0.00025868,83948.0,83947.0,0.7446323]
[1744794972810,0.00225868,83948.0,83947.0,0.7446323]
[1744794973013,0.00525868,83948.0,83947.0,0.7446323]
[1744794973604,0.00425868,83948.0,83947.0,0.7446323]
[1744794974603,0.00125868,83948.0,83947.0,0.7446323]
[1744794974808,0.00225868,83948.0,83947.0,0.7446323]
[1744794975316,0.00010801,83961.0,83960.0,0.1191138]
[1744794975506,1e-08,83961.0,83960.0,0.7231538]
[1744794975709,1e-08,83961.0,83960.0,0.79973909]
[1744794976504,1e-08,83961.0,83960.0,0.80173909]
[1744794976705,1e-08,83961.0,83960.0,0.80273909]
[1744794978313,1e-08,83961.0,83960.0,0.80973909]
[1744794980520,1e-08,83961.0,83960.0,0.7664538]
[1744794980718,1e-08,83961.0,83960.0,0.7564538]
[1744794980908,8.001e-05,83961.0,83960.0,0.7564538]
[1744794981114,8.001e-05,83961.0,83960.0,0.4899138]
[1744794981321,0.11919241,83961.0,83960.0,0.01]
[1744794981626,0.11919241,83961.0,83960.0,0.1291138]
[1744794982214,0.17989241,83961.0,83960.0,0.009]
[1744794982415,0.17989241,83961.0,83960.0,0.004]
[1744794982610,0.17989241,83961.0,83960.0,0.1231138]
[1744794982817,0.17989241,83961.0,83960.0,0.1211138]
[1744794983018,0.17989241,83961.0,83960.0,0.1221138]
[1744794983211,0.17989241,83961.0,83960.0,0.003]
[1744794983913,0.17989241,83961.0,83960.0,0.1221138]
[1744794984114,0.17989241,83961.0,83960.0,0.1201138]
[1744794987811,0.06078001,83961.0,83960.0,0.1501138]
[1744794988020,0.06078001,83961.0,83960.0,0.1201138]
[1744794988222,0.06070001,83961.0,83960.0,0.1501138]
[1744794988421,0.06078001,83961.0,83960.0,0.1501138]
[1744794988620,0.06078001,83961.0,83960.0,0.1831138]
[1744794989216,0.06070001,83961.0,83960.0,0.1831138]
[1744794989515,0.06078001,83961.0,83960.0,0.1831138]
[1744794989912,0.06078001,83961.0,83960.0,0.1501138]
[1744794990129,0.17989241,83961.0,83960.0,0.031]
[1744794990420,0.17989241,83961.0,83960.0,0.001]
[1744794991017,0.1191181,83957.0,83956.0,0.3608]
[1744794991417,0.1832181,83957.0,83956.0,0.4799195]
[1744794991923,0.1832181,83957.0,83956.0,0.3608]
[1744794992123,0.1191379,83943.0,83938.0,0.3608]
[1744794992319,0.1191379,83943.0,83942.0,0.4408]
[1744794992522,0.1191465,83937.0,83936.0,0.1193266]
[1744794993726,0.1191465,83937.0,83936.0,0.0001787]
[1744794993923,0.4799465,83937.0,83936.0,0.0001787]
[1744794994227,0.5754465,83937.0,83936.0,0.0001787]
[1744794994627,0.8254465,83937.0,83936.0,0.0021787]
[1744794994814,0.5754465,83937.0,83936.0,0.0021787]
[1744794995017,0.5754465,83937.0,83936.0,0.0031787]
[1744794995326,0.5754465,83937.0,83936.0,0.0011787]
[1744794995525,0.1191592,83928.0,83927.0,0.3608]
[1744794995726,0.1191592,83928.0,83927.0,0.4799606]
[1744794996426,0.1819592,83928.0,83927.0,0.4799606]
[1744794997528,0.1819592,83928.0,83927.0,0.3648]
[1744794997933,0.1191706,83920.0,83919.0,0.0001787]
[1744794998230,0.1191706,83920.0,83919.0,0.1193507]
[1744794998429,0.2161706,83920.0,83919.0,0.1194307]
[1744794998923,0.2161706,83920.0,83919.0,0.0002587]
[1744794999728,0.2161706,83920.0,83919.0,0.0022587]
[1744795000226,0.2161706,83920.0,83919.0,0.0072587]
[1744795001029,0.0595929,83910.0,83903.0,0.00900869]
[1744795001328,0.1192118,83892.0,83891.0,0.1192112]
[1744795001520,0.3608,83893.0,83892.0,0.1192104]
[1744795001721,0.4241,83893.0,83892.0,0.1292104]
[1744795001923,0.4241,83893.0,83892.0,0.1292904]
[1744795002726,0.4241,83893.0,83892.0,0.1592904]
[1744795003230,0.5433089,83893.0,83892.0,8e-05]
[1744795003621,0.1192118,83891.0,83890.0,0.00025382]
[1744795004229,0.1505118,83891.0,83890.0,0.00025382]
[1744795004834,0.119216,83888.0,83887.0,0.00512591]
[1744795006128,0.119216,83888.0,83884.0,0.0001787]
[1744795006129,0.119226,83881.0,83880.0,0.000108]
[1744795006328,0.1192331,83876.0,83875.0,0.00891475]
[1744795006643,0.1192331,83876.0,83875.0,0.1192345]
[1744795006931,0.1192402,83871.0,83870.0,0.1192404]
[1744795007135,0.1192384,83873.0,83872.0,0.1192374]
[1744795007340,0.1192384,83873.0,83872.0,0.12821652]
[1744795007524,0.1837384,83873.0,83872.0,0.12829652]
[1744795007824,0.1837384,83873.0,83872.0,0.12821652]
[1744795008023,0.1837384,83873.0,83872.0,0.12829652]
[1744795008439,0.1837374,83873.0,83872.0,0.12829652]
[1744795009131,0.0645,83873.0,83872.0,0.13229652]
[1744795009332,0.00017881,83879.0,83878.0,0.1192303]
[1744795009533,0.00017881,83879.0,83878.0,0.2192303]
[1744795009829,0.00017881,83879.0,83878.0,0.4792303]
[1744795010137,0.00017881,83879.0,83878.0,0.5415303]
[1744795010533,0.00017881,83879.0,83878.0,0.5465303]
[1744795011035,0.00017881,83879.0,83878.0,0.5495303]
[1744795011234,0.00017881,83879.0,83878.0,0.2995303]
[1744795019337,0.00017881,83879.0,83878.0,0.2975303]
[1744795019840,0.00017881,83879.0,83878.0,0.2945303]
[1744795020038,0.0596042,83894.0,83878.0,0.2945303]
[1744795020039,0.0627,83895.0,83894.0,0.1192075]
[1744795020241,0.0627,83895.0,83894.0,0.1507075]
[1744795020538,0.1819061,83895.0,83894.0,0.1607075]
[1744795021041,0.1819061,83895.0,83894.0,0.1917075]
[1744795021240,0.0627,83895.0,83894.0,0.1917075]
[1744795021444,0.3608,83898.0,83897.0,0.1192033]
[1744795021743,0.00017881,83903.0,83902.0,0.1191962]
[1744795022045,8e-05,83907.0,83906.0,0.1191905]
[1744795022245,0.005,83916.0,83915.0,0.1191777]
[1744795022439,0.005,83916.0,83915.0,0.2291777]
[1744795022440,0.00510801,83916.0,83915.0,0.2291777]
[1744795022637,0.005,83916.0,83915.0,0.2291777]
[1744795023345,0.1191862,83909.0,83908.0,0.1191873]
[1744795023939,0.0641,83910.0,83909.0,0.1191862]
[1744795024242,0.0641,83910.0,83909.0,0.2291862]
[1744795024445,8e-05,83910.0,83909.0,0.1802862]
[1744795024750,0.064,83915.0,83914.0,0.1191791]
[1744795025042,0.064,83915.0,83914.0,0.1291791]
[1744795025345,0.5439777,83915.0,83914.0,0.1291791]
[1744795026043,0.064,83915.0,83914.0,0.1291791]
[1744795026537,0.5439777,83915.0,83914.0,0.1291791]
[1744795026737,0.1831777,83915.0,83914.0,0.1291791]
[1744795026938,0.1841777,83915.0,83914.0,0.1291791]
[1744795027441,0.1831777,83915.0,83914.0,0.1291791]
[1744795027646,0.1841777,83915.0,83914.0,0.1291791]
[1744795028740,0.065,83915.0,83914.0,0.1291791]
[1744795029043,0.4258,83915.0,83914.0,0.1291791]
[1744795029249,0.4258,83915.0,83914.0,0.1622791]
[1744795030631,0.5449777,83915.0,83914.0,0.1622791]
[1744795032335,0.5449777,83915.0,83914.0,0.1522791]
[1744795033843,0.4258,83915.0,83914.0,0.1522791]
[1744795034041,0.5449777,83915.0,83914.0,0.1522791]
[1744795034442,0.1841777,83915.0,83914.0,0.1522791]
[1744795034645,0.5449777,83915.0,83914.0,0.1522791]
[1744795034842,0.065,83915.0,83914.0,0.1522791]
[1744795035046,0.00019684,83921.0,83915.0,0.0595884]
[1744795035239,0.00048428,83934.0,83915.0,0.0595884]
[1744795035240,0.0638,83929.0,83928.0,0.1191592]
[1744795035438,0.0638,83929.0,83928.0,0.1291592]
[1744795035943,0.0638,83929.0,83928.0,0.1919592]
[1744795036344,0.0638,83929.0,83928.0,0.1610592]
[1744795036656,0.06388,83929.0,83928.0,0.1630592]
[1744795036845,0.06388,83929.0,83928.0,0.1650592]
[1744795037144,0.06388,83929.0,83928.0,0.1630592]
[1744795037443,0.06388,83929.0,83928.0,0.1640592]
[1744795038044,0.06388,83929.0,83928.0,0.1321592]
[1744795038345,0.09448,83929.0,83928.0,0.1321592]
[1744795038549,0.09448,83929.0,83928.0,0.1311592]
[1744795039443,0.09448,83929.0,83928.0,0.1301592]
[1744795039643,0.09448,83929.0,83928.0,0.1291592]
[1744795040053,0.09448,83929.0,83928.0,0.1301592]
[1744795041247,8e-05,83929.0,83928.0,0.1712592]
[1744795041444,8e-05,83929.0,83928.0,0.2354592]
[1744795041748,0.0635,83934.0,83933.0,0.1191521]
[1744795041952,0.0635,83934.0,83933.0,0.1291521]
[1744795042249,0.0635,83934.0,83933.0,0.1602521]
[1744795042846,0.0635,83934.0,83933.0,0.1917521]
[1744795043050,0.0635,83934.0,83933.0,0.1602521]
[1744795043350,0.0635,83934.0,83933.0,0.01]
[1744795043546,0.2422261,83934.0,83933.0,0.1191521]
[1744795044740,0.2422261,83934.0,83933.0,0.1201521]
[1744795044950,0.2422261,83934.0,83933.0,0.001]
[1744795045153,0.1191692,83921.0,83920.0,0.00017881]
[1744795045459,0.4799692,83921.0,83920.0,0.00017881]
[1744795045749,0.4799692,83921.0,83910.0,0.08327683]
[1744795045750,0.1191862,83909.0,83908.0,0.00886534]
[1744795045943,0.119192,83905.0,83904.0,0.1191909]
[1744795046144,0.1191933,83904.0,83900.0,0.0595988]
[1744795046340,0.1787948,83903.0,83902.0,0.1191962]
[1744795046755,0.2428948,83903.0,83902.0,0.1191962]
[1744795046957,0.2428948,83903.0,83902.0,0.1192762]
[1744795047555,0.2448948,83903.0,83902.0,0.1192762]
[1744795047945,0.2428948,83903.0,83902.0,0.1192762]
[1744795048141,0.1246979,83903.0,83902.0,0.1192762]
[1744795048347,0.0651,83903.0,83902.0,0.1192762]
[1744795048549,0.1842947,83903.0,83902.0,0.1192762]
[1744795049459,0.0651,83903.0,83902.0,0.12819137]
[1744795050949,0.0641,83903.0,83902.0,0.12819137]
[1744795051153,0.0641,83903.0,83902.0,0.18939137]
[1744795051350,8e-05,83907.0,83906.0,0.1191905]
[1744795051552,8e-05,83907.0,83906.0,0.2891905]
[1744795051845,0.03099684,83912.0,83906.0,0.2891905]
[1744795051846,0.36090801,83937.0,83919.0,0.119172]
[1744795052156,0.0319,83931.0,83919.0,0.16]
[1744795052454,0.0319,83931.0,83930.0,0.1191564]
[1744795052847,0.0319,83931.0,83930.0,0.1492564]
[1744795053647,0.0319,83931.0,83930.0,0.1502564]
[1744795053853,0.0319,83931.0,83930.0,0.1602564]
[1744795054249,0.0319,83931.0,83930.0,0.1612564]
[1744795054852,0.0319,83931.0,83930.0,0.1937564]
[1744795055453,0.03198,83931.0,83930.0,0.1937564]
[1744795056951,0.03198,83931.0,83930.0,0.1927564]
[1744795057152,0.03198,83931.0,83930.0,0.1937564]
[1744795057350,0.03198,83931.0,83930.0,0.2037564]
[1744795057758,0.151135,83931.0,83930.0,0.022]
[1744795058057,0.151135,83931.0,83930.0,0.002]
[1744795059257,0.153135,83931.0,83930.0,0.001]
[1744795059968,0.153055,83931.0,83930.0,0.001]
[1744795060166,0.1191564,83930.0,83929.0,0.1191575]
[1744795060354,0.0957455,83931.0,83927.0,0.0595801]
[1744795060560,0.1191663,83923.0,83922.0,0.00017881]
[1744795060858,0.4799663,83923.0,83922.0,0.00017881]
[1744795061649,0.4799663,83923.0,83922.0,0.11934651]
[1744795061860,0.4799663,83923.0,83922.0,0.12042651]
[1744795062062,0.5122663,83923.0,83922.0,0.00125881]
[1744795062560,0.5132663,83923.0,83922.0,0.00117881]
[1744795062759,0.0595885,83916.0,83908.0,0.0595938]
[1744795062962,0.1191834,83911.0,83910.0,0.1192908]
[1744795063163,0.1191834,83911.0,83910.0,0.1191828]
[1744795063369,0.1823834,83911.0,83910.0,0.1191828]
[1744795063564,0.1823834,83911.0,83910.0,0.1192628]
[1744795063770,0.0632,83911.0,83910.0,0.1192628]
[1744795064465,0.1823834,83911.0,83910.0,0.1192628]
[1744795064652,0.1823834,83911.0,83910.0,8e-05]
[1744795065159,0.1823834,83911.0,83902.0,0.12829018]
[1744795065160,0.1191947,83903.0,83902.0,0.12829018]
[1744795065563,0.1495947,83903.0,83902.0,0.12829018]
[1744795066654,0.1495947,83903.0,83902.0,0.12929018]
[1744795067366,0.000268,83907.0,83906.0,0.1191905]
[1744795067759,0.1194571,83907.0,83906.0,0.1512905]
[1744795067959,0.1194571,83907.0,83906.0,0.0321]
[1744795068762,0.1520571,83907.0,83906.0,0.0321]
[1744795069458,0.1520571,83907.0,83906.0,0.1512905]
[1744795070167,0.1517891,83907.0,83906.0,0.1512905]
[1744795070371,0.1520571,83907.0,83906.0,0.0321]
[1744795070668,0.1787914,83904.0,83903.0,0.1191935]
[1744795070858,0.1191947,83903.0,83902.0,0.00909398]
[1744795071053,0.5125947,83903.0,83902.0,0.00909398]
[1744795071265,0.1788191,83892.0,83891.0,0.1192069]
[1744795071561,0.5396191,83892.0,83891.0,0.1192069]
[1744795071759,0.5396191,83892.0,83891.0,0.1281602]
[1744795072059,0.5396191,83892.0,83891.0,0.1610602]
[1744795072260,0.5711191,83892.0,83891.0,0.1610602]
[1744795072459,0.5711191,83892.0,83891.0,0.1661402]
[1744795074173,0.5711191,83892.0,83891.0,0.1691402]
[1744795074764,0.3923,83892.0,83891.0,0.1691402]
[1744795074965,0.0596023,83897.0,83896.0,0.1192047]
[1744795076055,0.0900023,83897.0,83896.0,0.1222047]
[1744795076254,0.1212023,83897.0,83896.0,0.1549047]
[1744795076667,0.1212023,83897.0,83896.0,0.1569047]
[1744795077463,0.0616,83897.0,83896.0,0.1569047]
[1744795077772,0.0616,83897.0,83896.0,0.1893047]
[1744795078064,0.1808033,83897.0,83896.0,0.1893047]
[1744795078269,0.1808033,83897.0,83896.0,0.1569047]
[1744795080271,0.0616,83897.0,83896.0,0.1569047]
[1744795080664,0.0616,83897.0,83896.0,0.1881047]
[1744795080973,0.1808033,83897.0,83896.0,0.1569047]
[1744795081172,0.1808033,83897.0,83896.0,0.005]
[1744795081767,0.1808033,83897.0,83896.0,0.1242047]
[1744795081967,0.1808033,83897.0,83896.0,0.1242847]
[1744795084675,0.0616,83897.0,83896.0,0.1242847]
[1744795084974,0.0616,83897.0,83896.0,0.1550847]
[1744795085163,0.1808033,83897.0,83896.0,0.1550847]
[1744795088361,0.1808033,83897.0,83896.0,0.03588]
[1744795089467,0.1808033,83897.0,83896.0,0.1550847]
[1744795091868,0.1808033,83897.0,83896.0,0.1868847]
[1744795092471,0.1808033,83897.0,83896.0,0.1550847]
[1744795092686,0.1808033,83897.0,83896.0,0.03588]
[1744795092871,0.1808033,83897.0,83896.0,0.00508]
[1744795093067,0.1808033,83897.0,83896.0,0.005]
[1744795093968,0.1808033,83897.0,83896.0,0.00508]
[1744795096574,0.1808033,83897.0,83896.0,0.005]
[1744795096975,0.1808033,83897.0,83896.0,0.00508]
[1744795097675,0.1192132,83890.0,83889.0,0.000108]
[1744795097878,0.1192132,83890.0,83887.0,0.00512591]
[1744795097879,0.119216,83888.0,83887.0,0.00512591]
[1744795098070,0.480016,83888.0,83887.0,0.00512591]
[1744795098271,0.541516,83888.0,83887.0,0.00512591]
[1744795098472,0.541516,83888.0,83887.0,0.00520591]
[1744795099475,0.541516,83888.0,83887.0,0.00620591]
[1744795099679,0.541516,83888.0,83887.0,0.00720591]
[1744795100776,0.4223,83888.0,83887.0,0.12642341]
[1744795100983,0.0615,83888.0,83887.0,0.12642341]
[1744795101173,0.0313,83888.0,83887.0,0.18892341]
[1744795101374,0.150516,83888.0,83887.0,0.18892341]
[1744795101880,0.183516,83888.0,83887.0,0.18892341]
[1744795102481,0.183516,83888.0,83887.0,0.06970591]
[1744795102680,0.183516,83888.0,83887.0,0.03900591]
[1744795103784,0.119216,83888.0,83887.0,0.03900591]
[1744795103979,0.119216,83888.0,83887.0,0.15822341]
[1744795103980,0.0639,83888.0,83887.0,0.15822341]
[1744795104185,0.183116,83888.0,83887.0,0.15814341]
[1744795104383,0.183116,83888.0,83887.0,0.18832341]
[1744795104887,0.183116,83888.0,83887.0,0.06910591]
[1744795105488,0.183116,83888.0,83887.0,0.03900591]
[1744795105886,0.183116,83888.0,83887.0,0.00720591]
[1744795106087,0.183116,83888.0,83887.0,0.00712591]
[1744795106882,0.183116,83888.0,83887.0,0.00720591]
[1744795107986,0.183116,83888.0,83883.0,0.00017881]
[1744795107987,0.1192217,83884.0,83883.0,0.00017881]
[1744795108188,0.4800217,83884.0,83883.0,0.00017881]
[1744795108393,0.5752217,83884.0,83883.0,0.00017881]
[1744795108987,0.5752217,83884.0,83883.0,0.00025881]
[1744795109187,0.5752217,83884.0,83883.0,0.00017881]
[1744795109390,0.5752217,83884.0,83883.0,0.00025881]
[1744795109588,0.5752217,83884.0,83883.0,0.00225881]
[1744795110191,0.5752217,83884.0,83883.0,0.00425881]
[1744795110590,0.0596144,83879.0,83873.0,0.1192373]
[1744795110790,0.1192359,83874.0,83873.0,0.1192373]
[1744795111196,0.1830359,83874.0,83873.0,0.1788554]
[1744795111787,0.1830359,83874.0,83873.0,0.1808554]
[1744795111988,0.1830359,83874.0,83873.0,0.0666181]
[1744795112184,0.1830359,83874.0,83873.0,0.007]
[1744795112886,0.0638,83874.0,83873.0,0.007]
[1744795113092,0.3608,83875.0,83874.0,0.1192359]
[1744795113396,0.1192305,83878.0,83877.0,0.1192317]
[1744795113596,0.1192305,83878.0,83877.0,0.1815317]
[1744795114291,0.00017881,83882.0,83881.0,0.119226]
[1744795114483,0.00017881,83882.0,83881.0,0.129226]
[1744795114683,0.11940341,83882.0,83881.0,0.1049]
[1744795114886,0.11940341,83882.0,83881.0,0.224126]
[1744795115283,0.15140341,83882.0,83881.0,0.216126]
[1744795115486,0.11940341,83882.0,83881.0,0.216126]
[1744795115885,0.11940341,83882.0,83881.0,0.0969]
[1744795116291,0.18290341,83882.0,83881.0,0.216126]
[1744795116693,0.18290341,83882.0,83881.0,0.216206]
[1744795117082,0.11940341,83882.0,83881.0,0.216206]
[1744795117789,0.11940341,83882.0,83881.0,0.218206]
[1744795117985,0.00017881,83882.0,83881.0,0.218206]
[1744795118885,0.00017881,83882.0,83881.0,0.248206]
[1744795119294,0.11940341,83882.0,83881.0,0.248206]
[1744795119598,0.11940341,83882.0,83881.0,0.248126]
[1744795119790,0.15110341,83882.0,83881.0,0.248206]
[1744795119990,0.18330341,83882.0,83881.0,0.248206]
[1744795121894,0.18330341,83882.0,83881.0,0.03588]
[1744795122198,0.18330341,83882.0,83881.0,0.155026]
[1744795122398,0.18330341,83882.0,83881.0,0.155106]
[1744795122793,0.18330341,83882.0,83881.0,0.185506]
[1744795123690,0.18330341,83882.0,83881.0,0.03588]
[1744795124695,0.18330341,83882.0,83881.0,0.00408]
[1744795125086,0.1192402,83871.0,83870.0,0.0303]
[1744795125285,0.4800402,83871.0,83870.0,0.030408]
[1744795125491,0.4800402,83871.0,83870.0,0.000108]
[1744795125694,0.1192431,83869.0,83868.0,0.1192444]
[1744795126095,0.1841431,83869.0,83868.0,0.1495444]
[1744795126406,0.1841431,83869.0,83868.0,0.1496244]
[1744795127293,0.1841431,83869.0,83868.0,0.03438]
[1744795128502,0.1841431,83869.0,83868.0,0.04038]
[1744795129699,0.1841431,83869.0,83868.0,0.1596245]
[1744795129900,0.1841431,83869.0,83868.0,0.01008]
[1744795130103,0.1841431,83869.0,83868.0,0.01]
[1744795130498,0.1841431,83869.0,83868.0,0.01008]
[1744795139994,0.1192473,83866.0,83865.0,0.00017881]
[1744795140394,0.1813473,83866.0,83865.0,0.00017881]
[1744795141203,0.1823473,83866.0,83865.0,0.00717881]
[1744795141707,0.1813473,83866.0,83865.0,0.00317881]
[1744795142004,0.1813473,83866.0,83865.0,0.00717881]
[1744795142503,0.0621,83866.0,83865.0,0.12642751]
[1744795142711,0.3608,83871.0,83870.0,0.1192416]
[1744795142898,0.5132402,83871.0,83870.0,0.1192416]
[1744795143095,0.5132402,83871.0,83870.0,0.1832416]
[1744795143299,0.394,83871.0,83870.0,0.1832416]
[1744795143499,0.3608,83871.0,83870.0,0.1832416]
[1744795143707,0.00017881,83882.0,83881.0,0.119226]
[1744795143905,0.00017881,83882.0,83881.0,0.129226]
[1744795144298,0.00017881,83882.0,83881.0,0.223926]
[1744795145006,0.00517881,83882.0,83881.0,0.224926]
[1744795145308,0.12440341,83882.0,83881.0,0.1057]
[1744795145605,0.15760341,83882.0,83881.0,0.1057]
[1744795146196,0.15860341,83882.0,83881.0,0.1057]
[1744795146404,0.15560341,83882.0,83881.0,0.1047]
[1744795146995,0.15660341,83882.0,83881.0,0.1047]
[1744795147705,0.15760341,83882.0,83881.0,0.1047]
[1744795148100,0.15760341,83882.0,83881.0,0.223926]
[1744795148101,0.15360341,83882.0,83881.0,0.223926]
[1744795148301,0.15660341,83882.0,83881.0,0.223926]
[1744795149608,0.00417881,83882.0,83881.0,0.223926]
[1744795152103,0.3608,83902.0,83881.0,0.7355]
[1744795152306,0.3608,83905.0,83904.0,0.1191933]
[1744795152501,0.000268,83907.0,83906.0,0.1191905]
[1744795153008,0.000348,83907.0,83906.0,0.2145905]
[1744795153507,0.1195371,83907.0,83906.0,0.2145905]
[1744795153708,0.1275371,83907.0,83906.0,0.2155905]
[1744795155303,0.1305371,83907.0,83906.0,0.2155905]
[1744795157206,0.1305371,83907.0,83906.0,0.22474837]
[1744795157804,0.1305371,83907.0,83906.0,0.23474837]
[1744795158206,0.1628371,83907.0,83906.0,0.23474837]
[1744795160916,0.1628371,83907.0,83906.0,0.11555787]
[1744795161107,0.1947371,83907.0,83906.0,0.23474837]
[1744795161508,0.1947371,83907.0,83906.0,0.0314]
[1744795161712,0.1947371,83907.0,83906.0,0.00108]
[1744795162113,0.1947371,83907.0,83906.0,0.001]
[1744795162510,0.1947371,83907.0,83906.0,0.00108]
[1744795163120,0.1946571,83907.0,83906.0,0.00108]
[1744795163306,0.1947371,83907.0,83906.0,0.00108]
[1744795164916,0.1944691,83907.0,83906.0,0.001]
[1744795165112,0.1943891,83907.0,83906.0,0.00108]
[1744795165413,0.1192004,83899.0,83898.0,0.00028681]
[1744795165618,0.4800004,83899.0,83898.0,0.00028681]
[1744795165809,0.5745004,83899.0,83898.0,0.00017881]
[1744795166007,0.5745004,83899.0,83898.0,0.00025881]
[1744795166809,0.2177004,83899.0,83898.0,0.00025881]
[1744795167011,0.5785004,83899.0,83898.0,0.00025881]
[1744795167517,0.5805004,83899.0,83898.0,0.00025881]
[1744795169313,0.2197004,83899.0,83898.0,0.00025881]
[1744795169515,0.5481004,83899.0,83898.0,0.03275881]
[1744795169823,0.5481804,83899.0,83898.0,0.03275881]
[1744795170018,0.5481004,83899.0,83898.0,0.15188061]
[1744795170415,0.5489564,83899.0,83898.0,0.03267881]
[1744795170724,0.5489564,83899.0,83898.0,0.15188061]
[1744795172722,0.5490364,83899.0,83898.0,0.15188061]
[1744795175128,0.5481004,83899.0,83898.0,0.15188061]
[1744795175823,0.5481004,83899.0,83898.0,0.18378061]
[1744795176025,0.5489564,83899.0,83898.0,0.18378061]
[1744795180036,0.5481004,83899.0,83898.0,0.18378061]
[1744795180922,0.5489564,83899.0,83898.0,0.18378061]
[1744795182631,0.5489564,83899.0,83898.0,0.03267881]
[1744795182829,0.5489564,83899.0,83898.0,0.00017881]
[1744795183224,0.1192089,83893.0,83892.0,0.000108]
[1744795183729,0.1824089,83893.0,83892.0,0.000108]
[1744795184529,0.1192146,83889.0,83888.0,0.0001458]
[1744795184726,0.1192189,83886.0,83885.0,0.00906113]
[1744795185038,0.1192203,83885.0,83884.0,0.00017881]
[1744795185334,0.1818203,83885.0,83884.0,0.00017881]
[1744795185532,0.1818203,83885.0,83884.0,0.11940051]
[1744795186137,0.1818203,83885.0,83884.0,0.00017881]
[1744795186639,0.1818203,83885.0,83884.0,0.11940051]
[1744795187030,0.1838203,83885.0,83884.0,0.11940051]
[1744795187230,0.1878203,83885.0,83884.0,0.11940051]
[1744795188836,0.1878203,83885.0,83884.0,0.00017881]
[1744795189030,0.1878203,83885.0,83884.0,0.11940051]
[1744795189436,0.1838203,83885.0,83884.0,0.11940051]
[1744795189631,0.1858203,83885.0,83884.0,0.11940051]
[1744795189838,0.1878203,83885.0,83884.0,0.11940051]
[1744795190034,0.1838203,83885.0,83884.0,0.11940051]
[1744795190240,0.1878203,83885.0,83884.0,0.11940051]
[1744795191339,0.0362,83885.0,83884.0,0.11940051]
[1744795191539,0.006,83885.0,83884.0,0.21340051]
[1744795192040,0.1252203,83885.0,83884.0,0.21340051]
[1744795192542,0.1865203,83885.0,83884.0,0.14960051]
[1744795193037,0.1825203,83885.0,83884.0,0.14960051]
[1744795193242,0.1855203,83885.0,83884.0,0.14960051]
[1744795193441,0.1845203,83885.0,83884.0,0.14960051]
[1744795194139,0.1815203,83885.0,83884.0,0.14960051]
[1744795194333,0.1845203,83885.0,83884.0,0.14960051]
[1744795195742,0.1815203,83885.0,83884.0,0.14960051]
[1744795195938,0.1835203,83885.0,83884.0,0.14960051]
[1744795197336,0.1845203,83885.0,83884.0,0.00017881]
[1744795197738,0.1845203,83885.0,83884.0,0.00025881]
[1744795198137,0.75886,83885.0,83867.0,0.1192454]
[1744795198340,0.3608,83868.0,83867.0,0.1193912]
[1744795199529,0.3608,83868.0,83867.0,0.1223912]
[1744795199730,0.4800459,83868.0,83867.0,0.1223912]
[1744795199935,0.4800445,83868.0,83867.0,0.1203912]
[1744795200130,0.5433445,83868.0,83867.0,0.1815912]
[1744795200446,0.5433445,83868.0,83867.0,0.1825912]
[1744795200649,0.4241,83868.0,83867.0,0.1825912]
[1744795200942,0.5433445,83868.0,83867.0,0.1517912]
[1744795201146,0.5433445,83868.0,83867.0,0.0325458]
[1744795201336,0.5742445,83868.0,83867.0,0.1213917]
[1744795201638,0.5742445,83868.0,83867.0,0.1212459]
[1744795201841,0.5742445,83868.0,83867.0,0.1213259]
[1744795203041,0.5742445,83868.0,83867.0,0.00208]
[1744795204039,0.5742445,83868.0,83867.0,0.1213259]
[1744795204545,0.5742445,83868.0,83867.0,0.1534259]
[1744795204546,0.4241,83868.0,83867.0,0.1534259]
[1744795204743,0.3941,83868.0,83867.0,0.1838259]
[1744795205239,0.5133445,83868.0,83867.0,0.1838259]
[1744795205441,0.3608,83868.0,83867.0,0.1838259]
[1744795208240,0.4800445,83868.0,83867.0,0.1838259]
[1744795208440,0.5116445,83868.0,83867.0,0.1838259]
[1744795209332,0.3924,83868.0,83867.0,0.1838259]
[1744795210140,0.5116445,83868.0,83867.0,0.1838259]
[1744795214547,0.5424445,83868.0,83867.0,0.1838259]
[1744795216052,0.3608,83868.0,83867.0,0.2138259]
[1744795216346,0.3916,83875.0,83867.0,0.09458]
[1744795216538,0.36097881,83876.0,83875.0,0.1192345]
[1744795216738,0.36097881,83876.0,83875.0,0.2137345]
[1744795217144,0.36097881,83876.0,83875.0,0.2237345]
[1744795217343,0.48021191,83876.0,83875.0,0.2237345]
[1744795217549,0.48021191,83876.0,83875.0,0.1618345]
[1744795217853,0.54371191,83876.0,83875.0,0.1618345]
[1744795218440,0.42447881,83876.0,83875.0,0.1937345]
[1744795219152,0.54371191,83876.0,83875.0,0.1937345]
[1744795219554,0.54471191,83876.0,83875.0,0.1937345]
[1744795221052,0.06467881,83876.0,83875.0,0.1937345]
[1744795221251,0.00117881,83876.0,83875.0,0.1937345]
[1744795221453,0.00117881,83876.0,83875.0,0.2037345]
[1744795223041,0.00117881,83876.0,83875.0,0.2057345]
[1744795223851,0.001124,83895.0,83894.0,0.1192075]
[1744795224055,0.001124,83895.0,83894.0,0.3937075]
[1744795224243,0.001044,83895.0,83894.0,0.4037075]
[1744795224551,0.001124,83895.0,83894.0,0.4037075]
[1744795225644,0.005044,83895.0,83894.0,0.4037075]
[1744795225844,0.006044,83895.0,83894.0,0.4037075]
[1744795226246,0.005044,83895.0,83894.0,0.4037075]
[1744795226453,0.005124,83895.0,83894.0,0.4037075]
[1744795226657,0.005044,83895.0,83894.0,0.4037075]
[1744795226853,0.005124,83895.0,83894.0,0.4037075]
[1744795227157,0.005044,83895.0,83894.0,0.4037075]
[1744795227357,0.005124,83895.0,83894.0,0.4037075]
[1744795227655,0.03147881,83903.0,83902.0,0.1191962]
[1744795227854,0.03147881,83903.0,83902.0,0.2291962]
[1744795228053,0.00017881,83903.0,83902.0,0.2903962]
[1744795228851,0.00717881,83903.0,83902.0,0.3003962]
[1744795231770,0.0309,83911.0,83910.0,0.1191848]
[1744795231953,0.0309,83911.0,83910.0,0.4001848]
[1744795232462,0.03098,83911.0,83910.0,0.4001848]
[1744795232867,0.03098,83911.0,83910.0,0.37916758]
[1744795233059,0.03498,83911.0,83910.0,0.37916758]
[1744795233463,0.03498,83911.0,83910.0,0.33886758]